[Event "11th LCC Super Blitz 2019"]
[Site "London"]
[Date "2019.12.08"]
[Round "3.6"]
[White "Toh, Q Kane"]
[Black "Eames, Robert S"]
[Result "1-0"]
[ECO "D41"]
[WhiteElo "1606"]
[BlackElo "2166"]
[Annotator "NA"]
[PlyCount "49"]
[EventDate "2019.12.08"]
[EventType "swiss"]
[EventCountry "ENG"]
[SourceTitle "playchess.com"]
[Source "ChessBase"]
[SourceQuality "1"]
[TimeControl "180+2"]

1. d4 {[%emt 0:00:00]} Nf6 {[%emt 0:00:00]} 2. c4 {[%emt 0:00:00]} e6 {[%emt 0:00:00]} 3. Nc3 {[%emt 0:00:01]} d5 {[%emt 0:00:01]} 4. cxd5 {[%emt 0:00:01]} Nxd5 {[%emt 0:00:02]} 5. e4 {[%emt 0:00:01]} Nxc3 {[%emt 0:00:02]} 6. bxc3 {[%emt 0:00:01]} c5 {[%emt 0:00:01]} 7. Nf3 {[%emt 0:00:02]} cxd4 {[%emt 0:00:02]} 8. cxd4 {[%emt 0:00:01]} Bb4+ {[%emt 0:00:01]} 9. Bd2 {[%emt 0:00:02]} Bxd2+ {[%emt 0:00:01]} 10. Qxd2 {[%emt 0:00:01]} O-O {[%emt 0:00:02]} 11. Be2 {[%emt 0:00:09]} b6 {[%emt 0:00:17]} 12. O-O {[%emt 0:00:26]} Bb7 {[%emt 0:00:01]} 13. e5 {[%emt 0:00:11]} Nd7 {[%emt 0:00:39]} 14. Rac1 {[%emt 0:00:12]} a6 {[%emt 0:00:14]} 15. Qf4 {[%emt 0:00:07]} Re8 {[%emt 0:00:12]} 16. Ng5 {[%emt 0:00:11]} Re7 {[%emt 0:00:13]} 17. Rc3 {[%emt 0:00:16]} h6 {[%emt 0:00:12]} 18. Ne4 {[%emt 0:00:13]} Nf8 {[%emt 0:00:09]} 19. Nd6 {[%emt 0:00:06]} Bd5 {[%emt 0:00:05]} 20. Bf3 {[%emt 0:00:27]} Ng6 {[%emt 0:00:03]} 21. Qg3 {[%emt 0:00:02]} Bxf3 {[%emt 0:00:11]} 22. Qxf3 {[%emt 0:00:11]} b5 {[%emt 0:00:13]} 23. Rfc1 {[%emt 0:00:05]} Kh7 {[%emt 0:00:06]} 24. g3 {[%emt 0:00:02]} Qd7 {[%emt 0:00:09]} 25. Qxa8 {[%emt 0:00:07]} 1-0

[Event "11th LCC Super Blitz 2019"]
[Site "London"]
[Date "2019.12.08"]
[Round "3.7"]
[White "Srivastava, Arnav"]
[Black "Stamatopoulos, Apostolos"]
[Result "0-1"]
[ECO "E11"]
[WhiteElo "1728"]
[BlackElo "1782"]
[Annotator "NA"]
[PlyCount "84"]
[EventDate "2019.12.08"]
[EventType "swiss"]
[EventCountry "ENG"]
[SourceTitle "playchess.com"]
[Source "ChessBase"]
[SourceQuality "1"]
[TimeControl "180+2"]

1. d4 {[%emt 0:00:00]} Nf6 {[%emt 0:00:00]} 2. c4 {[%emt 0:00:00]} e6 {[%emt 0:00:00]} 3. Nf3 {[%emt 0:00:01]} Bb4+ {[%emt 0:00:01]} 4. Bd2 {[%emt 0:00:01]} Qe7 {[%emt 0:00:01]} 5. g3 {[%emt 0:00:01]} Nc6 {[%emt 0:00:02]} 6. Bg2 {[%emt 0:00:01]} Bxd2+ {[%emt 0:00:08]} 7. Qxd2 {[%emt 0:00:08]} Ne4 {[%emt 0:00:05]} 8. Qc2 {[%emt 0:00:13]} Qb4+ {[%emt 0:00:17]} 9. Nbd2 {[%emt 0:00:04]} Nxd2 {[%emt 0:00:03]} 10. Qxd2 {[%emt 0:00:02]} Qxc4 {[%emt 0:00:07]} 11. O-O {[%emt 0:00:02]} Qb4 {[%emt 0:00:15]} 12. Qd3 {[%emt 0:00:07]} Qe7 {[%emt 0:00:15]} 13. e4 {[%emt 0:00:01]} d6 {[%emt 0:00:10]} 14. Rfe1 {[%emt 0:00:15]} O-O {[%emt 0:00:07]} 15. Rad1 {[%emt 0:00:22]} e5 {[%emt 0:00:26]} 16. d5 {[%emt 0:00:05]} Nb8 {[%emt 0:00:08]} 17. Nh4 {[%emt 0:00:16]} g6 {[%emt 0:00:10]} 18. Qe3 {[%emt 0:00:12]} a5 {[%emt 0:00:06]} 19. a4 {[%emt 0:00:01]} Na6 {[%emt 0:00:02]} 20. Bf1 {[%emt 0:00:14]} Nc5 {[%emt 0:00:02]} 21. Ng2 {[%emt 0:00:07]} Nxa4 {[%emt 0:00:06]} 22. f4 {[%emt 0:00:01]} Bg4 {[%emt 0:00:21]} 23. Be2 {[%emt 0:00:08]} Bxe2 {[%emt 0:00:02]} 24. Rxe2 {[%emt 0:00:01]} Nc5 {[%emt 0:00:05]} 25. f5 {[%emt 0:00:04]} f6 {[%emt 0:00:10]} 26. g4 {[%emt 0:00:00]} g5 {[%emt 0:00:02]} 27. h4 {[%emt 0:00:01]} h6 {[%emt 0:00:04]} 28. hxg5 {[%emt 0:00:01]} hxg5 {[%emt 0:00:04]} 29. Kf2 {[%emt 0:00:00]} Kg7 {[%emt 0:00:03]} 30. Rh1 {[%emt 0:00:01]} Rh8 {[%emt 0:00:01]} 31. Ree1 {[%emt 0:00:16]} Raf8 {[%emt 0:00:12]} 32. Reg1 {[%emt 0:00:00]} Qd8 {[%emt 0:00:03]} 33. Ne1 {[%emt 0:00:00]} Rxh1 {[%emt 0:00:01]} 34. Rxh1 {[%emt 0:00:00]} Rh8 {[%emt 0:00:01]} 35. Rg1 {[%emt 0:00:45]} Rh4 {[%emt 0:00:01]} 36. Nd3 {[%emt 0:00:02]} Nxd3+ {[%emt 0:00:08]} 37. Qxd3 {[%emt 0:00:01]} Rh2+ {[%emt 0:00:01]} 38. Kf1 {[%emt 0:00:04]} Qh8 {[%emt 0:00:02]} 39. Rg3 {[%emt 0:00:08]} Rh1+ {[%emt 0:00:04]} 40. Kf2 {[%emt 0:00:00]} Qh2+ {[%emt 0:00:02]} 41. Rg2 {[%emt 0:00:01]} Qf4+ {[%emt 0:00:02]} 42. Qf3 {[%emt 0:00:05]} Rf1+ {[%emt 0:00:03]} 0-1

[Event "11th LCC Super Blitz 2019"]
[Site "London"]
[Date "2019.12.08"]
[Round "3.7"]
[White "Brass, Ezra"]
[Black "Van Hoof, Alexander"]
[Result "0-1"]
[ECO "B18"]
[WhiteElo "1628"]
[BlackElo "1968"]
[Annotator "NA"]
[PlyCount "119"]
[EventDate "2019.12.08"]
[EventType "swiss"]
[EventCountry "ENG"]
[SourceTitle "playchess.com"]
[Source "ChessBase"]
[SourceQuality "1"]
[TimeControl "180+2"]

1. e4 {[%emt 0:00:00]} c6 {[%emt 0:00:00]} 2. d4 {[%emt 0:00:02]} d5 {[%emt 0:00:00]} 3. Nc3 {[%emt 0:00:02]} dxe4 4. Nxe4 {[%emt 0:00:01]} Bf5 {[%emt 0:00:02]} 5. Ng3 {[%emt 0:00:00]} Bg6 {[%emt 0:00:00]} 6. Nf3 {[%emt 0:00:02]} Nf6 {[%emt 0:00:03]} 7. Bd3 {[%emt 0:00:02]} Bxd3 8. Qxd3 {[%emt 0:00:02]} Nbd7 {[%emt 0:00:02]} 9. O-O {[%emt 0:00:02]} e6 {[%emt 0:00:01]} 10. Re1 {[%emt 0:00:02]} Be7 {[%emt 0:00:01]} 11. c3 {[%emt 0:00:06]} Qc7 {[%emt 0:00:12]} 12. Be3 {[%emt 0:00:10]} Rd8 {[%emt 0:00:05]} 13. a4 {[%emt 0:00:07]} O-O {[%emt 0:00:17]} 14. a5 {[%emt 0:00:01]} Rfe8 {[%emt 0:00:08]} 15. Bg5 {[%emt 0:00:09]} Nd5 {[%emt 0:00:33]} 16. Bxe7 {[%emt 0:00:08]} Nxe7 {[%emt 0:00:05]} 17. Ng5 {[%emt 0:00:07]} Ng6 {[%emt 0:00:23]} 18. h4 {[%emt 0:00:08]} Nf6 {[%emt 0:00:21]} 19. h5 {[%emt 0:00:35]} Nf4 {[%emt 0:00:02]} 20. Qf3 {[%emt 0:00:07]} h6 {[%emt 0:00:09]} 21. N5e4 {[%emt 0:00:06]} Nxe4 {[%emt 0:00:22]} 22. Nxe4 {[%emt 0:00:09]} Nd5 {[%emt 0:00:17]} 23. c4 {[%emt 0:00:17]} Ne7 {[%emt 0:00:03]} 24. Red1 {[%emt 0:00:16]} Nf5 {[%emt 0:00:04]} 25. Qg4 {[%emt 0:00:06]} Kh8 {[%emt 0:00:10]} 26. a6 {[%emt 0:00:13]} Nxd4 {[%emt 0:00:04]} 27. Nc5 {[%emt 0:00:08]} f5 {[%emt 0:00:07]} 28. Qh4 {[%emt 0:00:11]} Ne2+ {[%emt 0:00:06]} 29. Kf1 {[%emt 0:00:04]} Nf4 {[%emt 0:00:10]} 30. axb7 {[%emt 0:00:11]} Qb6 {[%emt 0:00:06]} 31. Rxd8 {[%emt 0:00:07]} Rxd8 {[%emt 0:00:01]} 32. Qxf4 {[%emt 0:00:06]} Qxc5 {[%emt 0:00:01]} 33. b8=Q {[%emt 0:00:05]} Rxb8 {[%emt 0:00:00]} 34. Qxb8+ {[%emt 0:00:02]} Kh7 35. Qg3 {[%emt 0:00:03]} Qxc4+ {[%emt 0:00:01]} 36. Kg1 {[%emt 0:00:01]} Qd4 {[%emt 0:00:04]} 37. Qc3 {[%emt 0:00:03]} Qb6 {[%emt 0:00:04]} 38. Qa5 {[%emt 0:00:02]} Qd4 {[%emt 0:00:04]} 39. Qxa7 {[%emt 0:00:03]} Qxb2 {[%emt 0:00:02]} 40. Qa3 {[%emt 0:00:01]} Qe5 {[%emt 0:00:02]} 41. Rd1 {[%emt 0:00:05]} f4 {[%emt 0:00:02]} 42. Qd3+ {[%emt 0:00:02]} Kg8 {[%emt 0:00:02]} 43. Qd8+ {[%emt 0:00:02]} Kh7 {[%emt 0:00:01]} 44. Qd3+ {[%emt 0:00:02]} Kg8 {[%emt 0:00:01]} 45. Qf3 {[%emt 0:00:01]} Qg5 {[%emt 0:00:03]} 46. Qxc6 {[%emt 0:00:03]} f3 {[%emt 0:00:01]} 47. Qxf3 {[%emt 0:00:02]} e5 {[%emt 0:00:01]} 48. Rd8+ {[%emt 0:00:01]} Qxd8 {[%emt 0:00:01]} 49. Qb3+ {[%emt 0:00:02]} Kh8 {[%emt 0:00:01]} 50. Qf3 {[%emt 0:00:01]} Qf6 {[%emt 0:00:03]} 51. Qa8+ {[%emt 0:00:02]} Kh7 {[%emt 0:00:01]} 52. Qe4+ {[%emt 0:00:02]} Kg8 {[%emt 0:00:02]} 53. Qa8+ {[%emt 0:00:01]} Kf7 {[%emt 0:00:00]} 54. Qd5+ {[%emt 0:00:02]} Ke7 {[%emt 0:00:02]} 55. Qb7+ {[%emt 0:00:01]} Ke6 {[%emt 0:00:00]} 56. Qb3+ {[%emt 0:00:02]} Kf5 {[%emt 0:00:01]} 57. Qf3+ {[%emt 0:00:01]} Kg5 {[%emt 0:00:02]} 58. Qxf6+ {[%emt 0:00:05]} gxf6 {[%emt 0:00:03]} 59. Kh2 {[%emt 0:00:03]} f5 {[%emt 0:00:00]} 60. Kg3 {[%emt 0:00:00]} 0-1

[Event "11th LCC Super Blitz 2019"]
[Site "London"]
[Date "2019.12.08"]
[Round "3.7"]
[White "Sheikh, Anum"]
[Black "Zulfic, Fedja"]
[Result "1/2-1/2"]
[ECO "B70"]
[WhiteElo "1560"]
[BlackElo "2032"]
[Annotator "NA"]
[PlyCount "78"]
[EventDate "2019.12.08"]
[EventType "swiss"]
[EventCountry "ENG"]
[SourceTitle "playchess.com"]
[Source "ChessBase"]
[SourceQuality "1"]
[TimeControl "180+2"]

1. e4 {[%emt 0:00:00]} c5 {[%emt 0:00:00]} 2. Nf3 {[%emt 0:00:00]} Nc6 {[%emt 0:00:02]} 3. d4 {[%emt 0:00:01]} cxd4 {[%emt 0:00:02]} 4. Nxd4 {[%emt 0:00:01]} g6 {[%emt 0:00:01]} 5. Nb3 {[%emt 0:00:02]} Bg7 {[%emt 0:00:03]} 6. Nc3 {[%emt 0:00:01]} d6 {[%emt 0:00:06]} 7. Be2 {[%emt 0:00:02]} Nf6 {[%emt 0:00:01]} 8. O-O {[%emt 0:00:02]} O-O {[%emt 0:00:03]} 9. Bg5 {[%emt 0:00:01]} Rb8 {[%emt 0:00:23]} 10. a4 {[%emt 0:00:06]} Be6 {[%emt 0:00:06]} 11. f4 {[%emt 0:00:01]} Kh8 {[%emt 0:00:39]} 12. f5 {[%emt 0:00:20]} Bxb3 {[%emt 0:00:03]} 13. cxb3 {[%emt 0:00:01]} Qb6+ {[%emt 0:00:04]} 14. Kh1 {[%emt 0:00:02]} Ne5 {[%emt 0:00:25]} 15. a5 {[%emt 0:00:24]} Qd8 {[%emt 0:00:27]} 16. Qd2 {[%emt 0:00:26]} Rc8 {[%emt 0:00:04]} 17. Bh6 {[%emt 0:00:18]} Rc5 {[%emt 0:00:10]} 18. Bxg7+ Kxg7 {[%emt 0:00:01]} 19. b4 {[%emt 0:00:12]} Rxc3 {[%emt 0:00:12]} 20. bxc3 {[%emt 0:00:06]} Nxe4 {[%emt 0:00:03]} 21. Qd4 {[%emt 0:00:09]} Nf6 {[%emt 0:00:08]} 22. fxg6 {[%emt 0:00:07]} hxg6 {[%emt 0:00:01]} 23. Qxa7 {[%emt 0:00:07]} Qc8 {[%emt 0:00:01]} 24. Qd4 {[%emt 0:00:11]} Rh8 {[%emt 0:00:01]} 25. b5 {[%emt 0:00:12]} Rh6 {[%emt 0:00:26]} 26. a6 {[%emt 0:00:04]} bxa6 {[%emt 0:00:01]} 27. bxa6 {[%emt 0:00:02]} Qh8 {[%emt 0:00:02]} 28. Qf4 {[%emt 0:00:21]} Rh4 {[%emt 0:00:05]} 29. Qg3 {[%emt 0:00:09]} Ne4 {[%emt 0:00:02]} 30. Qxh4 {[%emt 0:00:11]} Qxh4 {[%emt 0:00:02]} 31. a7 {[%emt 0:00:04]} Ng3+ {[%emt 0:00:01]} 32. Kg1 {[%emt 0:00:03]} Nxe2+ {[%emt 0:00:02]} 33. Kh1 {[%emt 0:00:01]} Ng3+ {[%emt 0:00:13]} 34. Kg1 {[%emt 0:00:01]} Ne2+ {[%emt 0:00:02]} 35. Kh1 {[%emt 0:00:01]} Ng3+ {[%emt 0:00:04]} 36. Kg1 {[%emt 0:00:01]} Ne2+ {[%emt 0:00:01]} 37. Kh1 {[%emt 0:00:01]} Ng4 {[%emt 0:00:10]} 38. h3 {[%emt 0:00:02]} Qg3 {[%emt 0:00:12]} 39. hxg4 {[%emt 0:00:02]} Qh4# 1/2-1/2

[Event "11th LCC Super Blitz 2019"]
[Site "London"]
[Date "2019.12.08"]
[Round "3.8"]
[White "John, Joshua"]
[Black "Tanmay Chopra"]
[Result "0-1"]
[ECO "D24"]
[WhiteElo "1694"]
[BlackElo "2100"]
[Annotator "NA"]
[PlyCount "46"]
[EventDate "2019.12.08"]
[EventType "swiss"]
[EventCountry "ENG"]
[SourceTitle "playchess.com"]
[Source "ChessBase"]
[SourceQuality "1"]
[TimeControl "180+2"]

1. d4 {[%emt 0:00:00]} Nf6 {[%emt 0:00:00]} 2. Nf3 {[%emt 0:00:01]} d5 {[%emt 0:00:00]} 3. c4 {[%emt 0:00:01]} e6 {[%emt 0:00:01]} 4. Nc3 {[%emt 0:00:01]} dxc4 {[%emt 0:00:00]} 5. a4 {[%emt 0:00:01]} Nc6 {[%emt 0:00:08]} 6. e3 {[%emt 0:00:04]} Na5 {[%emt 0:00:02]} 7. Ne5 {[%emt 0:00:03]} c5 {[%emt 0:00:12]} 8. Nxc4 {[%emt 0:00:12]} cxd4 {[%emt 0:00:18]} 9. Nxa5 {[%emt 0:00:07]} Qxa5 {[%emt 0:00:04]} 10. Qxd4 {[%emt 0:00:04]} Bb4 {[%emt 0:00:06]} 11. Bb5+ {[%emt 0:00:05]} Bd7 {[%emt 0:00:01]} 12. Bd2 {[%emt 0:00:16]} Rd8 {[%emt 0:00:12]} 13. O-O-O {[%emt 0:00:43]} Bxb5 {[%emt 0:00:09]} 14. Nxb5 {[%emt 0:00:11]} Rxd4 {[%emt 0:00:03]} 15. Nxd4 {[%emt 0:00:02]} Bxd2+ {[%emt 0:00:07]} 16. Rxd2 {[%emt 0:00:02]} Qxa4 {[%emt 0:00:01]} 17. Rc2 {[%emt 0:00:04]} Qa1+ {[%emt 0:00:03]} 18. Kd2 {[%emt 0:00:01]} Qxh1 {[%emt 0:00:02]} 19. Rc8+ {[%emt 0:00:01]} Kd7 {[%emt 0:00:01]} 20. Rxh8 {[%emt 0:00:02]} Qxg2 {[%emt 0:00:02]} 21. Ke1 {[%emt 0:00:25]} Qh1+ {[%emt 0:00:06]} 22. Ke2 {[%emt 0:00:03]} Qxh2 {[%emt 0:00:03]} 23. Rb8 {[%emt 0:00:03]} Qxb8 {[%emt 0:00:02]} 0-1

[Event "11th LCC Super Blitz 2019"]
[Site "London"]
[Date "2019.12.08"]
[Round "3.9"]
[White "Janula, Mariusz"]
[Black "Ball, Charlie J"]
[Result "1/2-1/2"]
[ECO "B07"]
[WhiteElo "1767"]
[BlackElo "1249"]
[Annotator "NA"]
[PlyCount "93"]
[EventDate "2019.12.08"]
[EventType "swiss"]
[EventCountry "ENG"]
[SourceTitle "playchess.com"]
[Source "ChessBase"]
[SourceQuality "1"]
[TimeControl "180+2"]

1. e4 {[%emt 0:06:23]} d6 {[%emt 0:00:03]} 2. d4 Nf6 {[%emt 0:00:02]} 3. Nc3 {[%emt 0:00:03]} Nbd7 {[%emt 0:00:04]} 4. f3 {[%emt 0:00:04]} e5 {[%emt 0:00:07]} 5. d5 {[%emt 0:00:03]} Be7 {[%emt 0:00:06]} 6. Bd3 {[%emt 0:00:07]} c6 {[%emt 0:00:04]} 7. dxc6 {[%emt 0:00:09]} bxc6 {[%emt 0:00:02]} 8. Be3 {[%emt 0:00:07]} Qc7 {[%emt 0:00:02]} 9. Nge2 {[%emt 0:00:02]} h6 {[%emt 0:00:17]} 10. O-O {[%emt 0:00:04]} Nf8 11. Qd2 {[%emt 0:00:12]} g5 {[%emt 0:00:09]} 12. Ng3 {[%emt 0:00:19]} Ng6 {[%emt 0:00:05]} 13. Nf5 {[%emt 0:00:10]} Bxf5 {[%emt 0:00:02]} 14. exf5 {[%emt 0:00:01]} Nf4 15. Bc4 {[%emt 0:00:12]} h5 {[%emt 0:00:25]} 16. Ne4 {[%emt 0:00:12]} Nxe4 {[%emt 0:00:07]} 17. fxe4 {[%emt 0:00:02]} h4 {[%emt 0:00:10]} 18. Rad1 {[%emt 0:00:13]} Rb8 {[%emt 0:00:12]} 19. Bb3 {[%emt 0:00:03]} Bf8 {[%emt 0:00:33]} 20. Kh1 {[%emt 0:00:16]} Bh6 {[%emt 0:00:09]} 21. Qf2 {[%emt 0:00:05]} g4 {[%emt 0:00:20]} 22. Bxa7 {[%emt 0:00:02]} Rb7 {[%emt 0:00:01]} 23. Be3 {[%emt 0:00:03]} g3 {[%emt 0:00:03]} 24. Qd2 {[%emt 0:00:05]} gxh2 {[%emt 0:00:04]} 25. Bxf4 {[%emt 0:00:13]} Bxf4 {[%emt 0:00:04]} 26. Rxf4 {[%emt 0:00:08]} exf4 27. Qxf4 {[%emt 0:00:01]} d5 {[%emt 0:00:06]} 28. e5 {[%emt 0:00:02]} h3 {[%emt 0:00:04]} 29. Rd2 {[%emt 0:00:05]} hxg2+ {[%emt 0:00:02]} 30. Rxg2 {[%emt 0:00:02]} Qa5 {[%emt 0:00:04]} 31. c3 {[%emt 0:00:02]} Qc7 {[%emt 0:00:11]} 32. Rxh2 {[%emt 0:00:05]} Rh7 {[%emt 0:00:01]} 33. Rh5 Rxh5+ 34. Qh2 Rh4 35. Qxh4 {[%emt 0:00:14] Ke7 Qf6+ Ke8 Bc2} Qe7 {[%emt 0:00:08]} 36. Qh8+ {[%emt 0:00:04]} Kd7 37. e6+ {[%emt 0:00:02]} fxe6 {[%emt 0:00:04]} 38. fxe6+ {[%emt 0:00:03]} Qxe6 {[%emt 0:00:04]} 39. Qh7+ {[%emt 0:00:03]} Kd6 40. Qh2+ {[%emt 0:00:02]} Kd7 {[%emt 0:00:01]} 41. Qf2 {[%emt 0:00:06]} Qh6+ 42. Kg1 {[%emt 0:00:01]} Rb5 {[%emt 0:00:02]} 43. Qf5+ {[%emt 0:00:03]} Kc7 {[%emt 0:00:02]} 44. Qe5+ {[%emt 0:00:02]} Qd6 {[%emt 0:00:03]} 45. Qxd6+ {[%emt 0:00:01]} Kxd6 {[%emt 0:00:02]} 46. Kf2 Rb8 {[%emt 0:00:01]} 47. Ke3 {[%emt 0:00:06] Rxb2 Bb3 Rb1 Kd2 Rh1 a4 Rh2+ Kd3 Rh3+ Kc2 Rh2+ Kd3 Rh3+ Kd2} 1/2-1/2

[Event "11th LCC Super Blitz 2019"]
[Site "London"]
[Date "2019.12.08"]
[Round "3.9"]
[White "Thatte, Nandinee"]
[Black "Kennedy, Craig"]
[Result "0-1"]
[ECO "A42"]
[WhiteElo "1270"]
[BlackElo "1899"]
[Annotator "NA"]
[PlyCount "56"]
[EventDate "2019.12.08"]
[EventType "swiss"]
[EventCountry "ENG"]
[SourceTitle "playchess.com"]
[Source "ChessBase"]
[SourceQuality "1"]
[TimeControl "180+2"]

1. d4 {[%emt 0:00:00]} g6 {[%emt 0:00:00]} 2. c4 {[%emt 0:00:01]} Bg7 {[%emt 0:00:01]} 3. Nc3 {[%emt 0:00:01]} d6 {[%emt 0:00:02]} 4. e4 {[%emt 0:00:02]} Nd7 {[%emt 0:00:06]} 5. f3 {[%emt 0:00:02]} e5 {[%emt 0:00:03]} 6. d5 {[%emt 0:00:03]} a6 {[%emt 0:00:02]} 7. Be3 {[%emt 0:00:05]} f5 {[%emt 0:00:06]} 8. exf5 {[%emt 0:00:19]} gxf5 {[%emt 0:00:02]} 9. g3 {[%emt 0:00:08]} Ngf6 {[%emt 0:00:03]} 10. Bd3 {[%emt 0:00:04]} Nc5 {[%emt 0:00:05]} 11. Nge2 {[%emt 0:00:07]} Qe7 {[%emt 0:00:13]} 12. Qd2 {[%emt 0:00:10]} e4 {[%emt 0:00:08]} 13. fxe4 {[%emt 0:00:03]} Ncxe4 {[%emt 0:00:10]} 14. Nxe4 {[%emt 0:00:13]} Nxe4 {[%emt 0:00:03]} 15. Nc3 {[%emt 0:00:14]} Nxd2 {[%emt 0:00:04]} 16. Kxd2 {[%emt 0:00:07]} O-O {[%emt 0:00:09]} 17. Rae1 {[%emt 0:00:03]} Qf7 {[%emt 0:00:09]} 18. Rhf1 {[%emt 0:00:10]} Qh5 {[%emt 0:00:11]} 19. Rh1 {[%emt 0:00:14]} b5 {[%emt 0:00:02]} 20. cxb5 {[%emt 0:00:07]} axb5 {[%emt 0:00:02]} 21. Bxb5 {[%emt 0:00:04]} Bxc3+ {[%emt 0:00:11]} 22. Kxc3 {[%emt 0:00:06]} Rxa2 {[%emt 0:00:06]} 23. Bc4 {[%emt 0:00:03]} Ra8 {[%emt 0:00:05]} 24. Bf4 {[%emt 0:00:17]} Ba6 {[%emt 0:00:02]} 25. Bb3 {[%emt 0:00:04]} Qf3+ {[%emt 0:00:07]} 26. Kc2 {[%emt 0:00:08]} Qd3+ {[%emt 0:00:07]} 27. Kc1 {[%emt 0:00:12]} Bc4 {[%emt 0:00:03]} 28. Bxc4 {[%emt 0:00:17]} Ra1# {[%emt 0:00:02]} 0-1

[Event "11th LCC Super Blitz 2019"]
[Site "London"]
[Date "2019.12.08"]
[Round "3.10"]
[White "Young, Daniel J"]
[Black "Bergner, Matthias"]
[Result "1-0"]
[ECO "D78"]
[WhiteElo "1947"]
[BlackElo "1632"]
[Annotator "NA"]
[PlyCount "72"]
[EventDate "2019.12.08"]
[EventType "swiss"]
[EventCountry "ENG"]
[SourceTitle "playchess.com"]
[Source "ChessBase"]
[SourceQuality "1"]
[TimeControl "180+2"]

1. Nf3 {[%emt 0:00:00]} g6 {[%emt 0:00:02]} 2. c4 {[%emt 0:00:02]} Bg7 {[%emt 0:00:01]} 3. d4 {[%emt 0:00:01]} Nf6 {[%emt 0:00:01]} 4. g3 {[%emt 0:00:02]} O-O {[%emt 0:00:02]} 5. Bg2 {[%emt 0:00:01]} c6 {[%emt 0:00:08]} 6. O-O {[%emt 0:00:05]} d5 {[%emt 0:00:07]} 7. Nbd2 {[%emt 0:00:04]} dxc4 {[%emt 0:00:09]} 8. Nxc4 {[%emt 0:00:02]} Be6 {[%emt 0:00:07]} 9. b3 {[%emt 0:00:12]} Nbd7 {[%emt 0:00:05]} 10. Bb2 {[%emt 0:00:04]} Nb6 {[%emt 0:00:03]} 11. Nce5 {[%emt 0:00:13]} Nfd7 {[%emt 0:00:12]} 12. Nd3 {[%emt 0:00:19]} Rc8 {[%emt 0:00:09]} 13. e4 {[%emt 0:00:06]} Nf6 {[%emt 0:00:11]} 14. Nf4 {[%emt 0:00:07]} Nxe4 {[%emt 0:00:17]} 15. Nxe6 {[%emt 0:00:06]} fxe6 {[%emt 0:00:02]} 16. Qe2 {[%emt 0:00:10]} Nf6 {[%emt 0:00:20]} 17. Qxe6+ {[%emt 0:00:05]} Kh8 {[%emt 0:00:02]} 18. Ne5 {[%emt 0:00:19]} Qe8 {[%emt 0:00:06]} 19. Rae1 {[%emt 0:00:22]} Nfd5 {[%emt 0:00:18]} 20. Ng4 {[%emt 0:00:20]} Qf7 {[%emt 0:00:09]} 21. Qxf7 {[%emt 0:00:05]} Rxf7 {[%emt 0:00:02]} 22. a4 {[%emt 0:00:05]} Rcf8 {[%emt 0:00:18]} 23. a5 {[%emt 0:00:02]} Nc8 {[%emt 0:00:07]} 24. Ne5 {[%emt 0:00:06]} Bxe5 {[%emt 0:00:06]} 25. Rxe5 {[%emt 0:00:04]} Kg8 {[%emt 0:00:13]} 26. Bxd5 {[%emt 0:00:03]} cxd5 {[%emt 0:00:02]} 27. Rxd5 {[%emt 0:00:02]} Nd6 {[%emt 0:00:09]} 28. Ba3 {[%emt 0:00:03]} Nf5 {[%emt 0:00:11]} 29. Rd7 {[%emt 0:00:10]} Rb8 {[%emt 0:00:11]} 30. g4 {[%emt 0:00:04]} Nd6 {[%emt 0:00:00]} 31. Bxd6 {[%emt 0:00:05]} exd6 {[%emt 0:00:00]} 32. Rxd6 {[%emt 0:00:01]} Re8 {[%emt 0:00:01]} 33. d5 {[%emt 0:00:11]} Rfe7 {[%emt 0:00:02]} 34. b4 {[%emt 0:00:06]} Re4 {[%emt 0:00:02]} 35. f3 {[%emt 0:00:06]} Rxb4 {[%emt 0:00:03]} 36. Rd7 {[%emt 0:00:01]} a6 {[%emt 0:00:12]} 1-0

[Event "11th LCC Super Blitz 2019"]
[Site "London"]
[Date "2019.12.08"]
[Round "3.10"]
[White "Nunn, Petra"]
[Black "Zhao, Haolin"]
[Result "1/2-1/2"]
[ECO "B36"]
[WhiteElo "1908"]
[BlackElo "1725"]
[Annotator "NA"]
[PlyCount "61"]
[EventDate "2019.12.08"]
[EventType "swiss"]
[EventCountry "ENG"]
[SourceTitle "playchess.com"]
[Source "ChessBase"]
[SourceQuality "1"]
[TimeControl "180+2"]

1. e4 {[%emt 0:00:00]} c5 {[%emt 0:00:00]} 2. Nf3 {[%emt 0:00:01]} g6 {[%emt 0:00:00]} 3. c4 {[%emt 0:00:01]} Nc6 {[%emt 0:00:02]} 4. d4 {[%emt 0:00:07]} cxd4 {[%emt 0:00:02]} 5. Nxd4 {[%emt 0:00:01]} Nf6 {[%emt 0:00:01]} 6. Nc3 {[%emt 0:00:03]} Nxd4 {[%emt 0:00:01]} 7. Qxd4 {[%emt 0:00:02]} Bg7 {[%emt 0:00:01]} 8. Qd1 {[%emt 0:00:25]} O-O {[%emt 0:00:03]} 9. Be2 {[%emt 0:00:05]} d6 {[%emt 0:00:05]} 10. O-O {[%emt 0:00:03]} Be6 {[%emt 0:00:05]} 11. Be3 {[%emt 0:00:18]} a6 {[%emt 0:00:01]} 12. Qd2 {[%emt 0:00:07]} Nd7 {[%emt 0:00:02]} 13. Rac1 {[%emt 0:00:20]} Rb8 {[%emt 0:00:03]} 14. Rfd1 {[%emt 0:00:08]} Qa5 {[%emt 0:00:03]} 15. b3 {[%emt 0:00:20]} Rfc8 {[%emt 0:00:03]} 16. f4 {[%emt 0:00:06]} b5 {[%emt 0:00:08]} 17. Nd5 {[%emt 0:00:10]} Qxd2 {[%emt 0:00:06]} 18. Rxd2 {[%emt 0:00:06]} Kf8 {[%emt 0:00:09]} 19. Rdc2 {[%emt 0:00:08]} bxc4 {[%emt 0:00:14]} 20. Bxc4 {[%emt 0:00:02]} a5 {[%emt 0:00:05]} 21. h3 {[%emt 0:00:14]} Bxd5 {[%emt 0:00:06]} 22. Bxd5 {[%emt 0:00:06]} Rxc2 {[%emt 0:00:05]} 23. Rxc2 {[%emt 0:00:00]} e6 {[%emt 0:00:02]} 24. Bc6 {[%emt 0:00:03]} Nc5 {[%emt 0:00:05]} 25. Bxc5 {[%emt 0:00:05]} dxc5 {[%emt 0:00:03]} 26. Rc4 {[%emt 0:00:11]} Bd4+ {[%emt 0:00:05]} 27. Kf1 Rb4 {[%emt 0:00:00]} 28. Rxb4 {[%emt 0:00:03]} axb4 {[%emt 0:00:00]} 29. Ke2 {[%emt 0:00:01]} Ke7 {[%emt 0:00:00]} 30. Bb5 {[%emt 0:00:02]} f6 {[%emt 0:00:03]} 31. Kd3 {[%emt 0:00:01]} 1/2-1/2